Workbook

Sheet Factory Input Fields
B1: Factory Labour Minute and Product Costing Calculator - Romania
B2: Instructions and input fields, calculation and comparison of labour minute values
B4: The yellow fields in the file are your input fields, where you should insert the actual information based on your factory
G6: Factory Name (optional)
G7: Responsible staff (optional)
B8: Step | C8: Value
B9: 1) | C9: 4.84 | D9: Exchange rate (Romanian new Lei) RON - Euro
B10: workforce
B11: 2) | D11: Total number of production workers in the factory.
B12: 3) | D12: Insert total number of sewing operators working actively in the prod. lines (i.e. # machines in the lines determine capacity minutes), which means: | H12: =IFERROR(C12/C11,0) -> 0 | I12: of the workforce.
B13: paid leave
C14: 15 | D14: Total number of paid public holiday days per year when the factory is closed and workers are paid. ( https://publicholidays.ro ) As per law, workers are entitled to 15 days.
C15: 20 | D15: Total number of paid annual leave. Employees are entitled to a minimum of 20 days/year of paid vacation (annual leave).
C16: =SUM(C14:C15) -> 35 | D16: Total number of paid leave days taken annually per worker.
B17: overtime
B18: 4) | D18: Insert the average weekly Overtime Hours. As per law, overtime hours are renumerated at 175% of legal minuimum wage.
B19: capacity minutes
C20: =(40+C18)*4.33*60-((C16/12*8*60))-((C16/12*C18/6)*60) -> 8992 | D20: Total capacity minutes per worker/month, based on regular (40 h/w) and overtime hours (C18) and adjusted for the total average number of paid leave taken annually per worker (C16).
C21: =C12*C20 -> 0 | D21: Total number of monthly sewing minutes (number of sewing operators x (40 + weekly OT hours) x 4.33 x 60 MINUS average monthly number of minutes on days not worked (i.e. paid public leave).
B22: paid benefits
B23: 5) | D23: Insert the total amount paid in medical leave allowance per YEAR. If applicable, workers are entitled to a medical leave allowance of 100% or 75% of the average 6 months gross salary prior to illness period, depending on the cause of the incapacity.
B24: 6) | D24: Insert the total amount paid in productivity bonuses per MONTH
B25: 7) | D25: Insert the total amount paid in attendance bonuses per MONTH
B26: 8) | D26: Insert the total amount paid in seniority bonuses per MONTH
B27: 9) | D27: Insert the total amount paid in skills bonuses per MONTH
B28: 10) | D28: Insert the total amount paid in any additional bonuses per MONTH
B29: employer on-costs
B30: 11) | D30: Insert the total amount paid in maternity leave benefits per YEAR. Eligible workers receive 8 weeks before and 8 weeks after birth.
B31: 12) | D31: Insert total amount paid in severence pay per YEAR.
B32: 13) | D32: Insert the total amound paid in any additional employer labour-related on-costs paid per YEAR
C34: 2230 | D34: Legal Minimum Wage (Gross)
B35: 14) | C35: 6762 | D35: Insert the Wage Benchmark (new NMW, CBA, or LW)
B37: Wage | C37: Description | E37: Labour Cost avg. worker | F37: Capacity Minutes | G37: Labour Minute Value (RON) | H37: Labour Minute Value (EUR) | I37: Difference (absolute) | J37: Increment (in%)
B38: ='Labour Minute Value Romania'!E5 -> 2230 | C38: ='Labour Minute Value Romania'!E4 -> Current Minimum Wage | E38: ='Labour Minute Value Romania'!E29 -> 2280.175 | F38: ='Labour Minute Value Romania'!E30 -> 8992 | G38: =E38/F38 -> 0.2535781806 | H38: =G38/C9 -> 0.05239218608
B39: ='Labour Minute Value Romania'!H5 -> 6762 | C39: ='Labour Minute Value Romania'!H4 -> Wage Benchmark (new NMW, CBA, or LW) | E39: ='Labour Minute Value Romania'!H29 -> 6914.145 | F39: =F38 -> 8992 | G39: =E39/F39 -> 0.7689218194 | H39: =G39/C9 -> 0.1588681445 | I39: =H39-H38 -> 0.1064759584 | J39: =IFERROR((H39-H38)/H38,0) -> 2.032286996
B41: Monthly Operational Expenses in the Factory
C42: in LEI | D42: in EUR | E42: per minute | F42: (operational expenses in EUR divided by the total monthly sewing minutes (C21)
B43: 15) | D43: =C43/$C$9 -> 0 | E43: =IFERROR(D43/$C$21,0) -> 0 | F43: Insert the total amount paid for Direct Labour (i.e. sewing operators) per month in RON.
B44: 16) | D44: =C44/$C$9 -> 0 | E44: =IFERROR(D44/$C$21,0) -> 0 | F44: Insert the total amount paid for Indirect Labour (all other labour costs besides sewing, e.g. cutting, QC, maintainance, security, cleaning, office staff etc.) per month in RON.
C45: =SUM(C43:C44) -> 0 | D45: =C45/$C$9 -> 0 | E45: =IFERROR(D45/$C$21,) -> 0 | F45: Total labour costs per month in RON / Labour Minute Costs (calculated by dividing with sewing capacity minutes: C21)
B46: 17) | D46: =C46/C9 -> 0 | E46: =IFERROR(D46/C21,0) -> 0 | F46: Insert the average overhead costs in the factory: rent, fuel, electricity, training, interest payments, depreciation on building, safety measures, etc. per month in RON.
B47: 18) | D47: =C47/C9 -> 0 | E47: =IFERROR(D47/C21,0) -> 0 | F47: If appliable, Insert the total additional costs per month for Covid-19 measures (e.g. face masks, desinfectants, temperature scanning, etc).
C48: =C45+C46 -> 0 | D48: =D46+D45+D47 -> 0 | E48: =E46+E45+E47 -> 0 | F48: Total factory expenses per month in RON / working minute costs (which can be compared with the working minute costs based on prevailing min. wage (Cell I-48/49) as a plausibility check).
C50: =IFERROR(C43/C45,0) -> 0 | D50: Based on the above step 2, total percentage paid for Direct Labour (i.e. sewing).
C51: =IFERROR(C44/C45,0) -> 0 | D51: Based on above step 3, total percentage paid for Indirect Labour (all other labour costs besides sewing, e.g. cutting, QC, maintenance, security, cleaning, office staff etc).
B53: Once you have inserted all above you should get following information:
B55: Wage (month) | C55: Description | E55: Direct Labour (A) | F55: Indirect Labour (B) | G55: Factory Labour Minute Value (C) | H55: Overhead (D) | I55: Total Working Minute Cost (C+D) | J55: Increment (in%)
E56: =C50 -> 0 | F56: =C51 -> 0 | G56: A+B
B57: =C34 -> 2230 | C57: Factory Labour/Working Minute Value (based on Legal Minimum Wage) | E57: =H38 -> 0.05239218608 | F57: =IFERROR(G57*C51,0) -> 0 | G57: =IFERROR(E57/C50,0) -> 0 | H57: =E46+E47 -> 0 | I57: =SUM(G57:H57) -> 0
B58: =C35 -> 6762 | C58: Factory Labour/Working Minute Value (based on Target Wage) | E58: =H39 -> 0.1588681445 | F58: =IFERROR(G58*C51,0) -> 0 | G58: =IFERROR(E58/C50,0) -> 0 | H58: =E46+E47 -> 0 | I58: =SUM(G58:H58) -> 0 | J58: =IFERROR((I58-I57)/I57,0) -> 0

Sheet Product Style Costing
B1: Product Style Costing Calculator - Romania
B2: Instructions and input fields, calculation and comparison of labour minute values
B4: The yellow fields in the file are your input fields, where you should insert the actual information based on your factory
H6: Brand Name
G7: Factory Name
G8: Responsible staff (optional)
B10: From the Worksheet 'Factory Input Fields', you should get following information:
B12: Wage (month) | C12: Description | E12: Direct Labour (A) | F12: Indirect Labour (B) | G12: Factory Labour Minute Value (C) | H12: Overhead (D) | I12: Total Working Minute Cost (C+D) | J12: Increment (in%)
E13: ='Factory Input Fields'!$E$56 -> 0 | F13: ='Factory Input Fields'!$E$56 -> 0 | G13: A+B
B14: ='Factory Input Fields'!$B$57 -> 2230 | C14: Factory Labour/Working Minute Value (based on Legal Minimum Wage) | E14: ='Factory Input Fields'!E57 -> 0.05239218608 | F14: ='Factory Input Fields'!F57 -> 0 | G14: ='Factory Input Fields'!G57 -> 0 | H14: ='Factory Input Fields'!$H$57 -> 0 | I14: =SUM(G14:H14) -> 0
B15: ='Factory Input Fields'!$B$58 -> 6762 | C15: Factory Labour/Working Minute Value (based on Target Wage) | E15: ='Factory Input Fields'!E58 -> 0.1588681445 | F15: ='Factory Input Fields'!F58 -> 0 | G15: ='Factory Input Fields'!G58 -> 0 | H15: ='Factory Input Fields'!$H$58 -> 0 | I15: =SUM(G15:H15) -> 0 | J15: =IFERROR((I15-I14)/I14,0) -> 0
B17: Calculating the cost for a product style
C19: Items provided by the factory | E19: Details / Calculations | G19: Notes
B20: 1) | C20: Style Name / Number | G20: Style name or number of the Product
B21: 2) | C21: Standard Allowed Minutes | G21: Standard Allowed (sewing) Minutes of the style you want to calculate per piece.
B22: 3) | C22: Efficiency Percentage | G22: Factory or Line efficiency. One could also adjust this % to calculate the impact of Covid-19 on labour (and product) costs due to possible efficiency loss.
C23: Actual number of sewing minutes for style | E23: =IFERROR(E21/E22,0) -> 0 | G23: Note: if you don't know the SAM and efficiency percentage, simply indicate the actual labour minutes under 2, and 100% efficiency under 3).
B24: 4) | C24: Fabric | G24: Fabric costs per piece (incl. wastage %) in EUR
B25: 5) | C25: Accessories | G25: Costs for accessories (buttons, zippers, etc) per piece in EUR
B26: 6) | C26: Polybag, packaging, labelling | G26: Total amount per piece for polybag, packaging, hangtag
C27: Total Material Costs | E27: =SUM(E24:G26) -> 0
B28: Total CM Costs | C28: Labour Cost | E28: at Legal Minimum Wage | F28: at Target Wage | G28: Factory labour minute value x SAM / efficiency %
C29: Direct | D29: =E13 -> 0 | E29: =E23*E14 -> 0 | F29: =E23*E15 -> 0
C30: Indirect | D30: =F13 -> 0 | E30: =E23*F14 -> 0 | F30: =E23*F15 -> 0
C31: Total labour cost | E31: =SUM(E29:E30) -> 0 | F31: =SUM(F29:F30) -> 0
C32: Overhead Cost (electricity, fuel ..) | E32: =E23*H14 -> 0 | G32: Overhead cost per minute (H14) x minutes spent on style (step 2-3).
B33: 7) | C33: Outsourced processes | G33: If applicable, amount paid per piece for outsourced processes (e.g. embroidery, washing, printing) in EUR
B34: 8) | C34: Logistic costs (inbound-outbound) | G34: Cost for logistics (inbound and out-bound) calculated per piece in EUR
B35: 9) | C35: Import tax and duties | G35: Cost for import tax and duties calculated per piece in EUR
C36: Total Garment Manufacturing Cost | E36: =E24+E25+E34+E35+E31+E33+E26+E32 -> 0 | F36: =E24+E25+E34+E35+F31+E33+E26+E32 -> 0
B37: 10) | C37: Profit Margin | E37: =D37*E36 -> 0 | F37: =D37*F36 -> 0 | G37: Insert your profit margin.
B38: 11) | C38: Buying House Commission | E38: =F36*D38 -> 0 | F38: =F36*D38 -> 0 | G38: If applicable, insert the buying houses commission %
C39: Factory Selling Price | E39: =SUM(E36:E38) -> 0 | F39: =SUM(F36:F38) -> 0
C40: % increase | F40: =IFERROR((F39-E39)/E39,0) -> 0
B42: 12) | D42: CHECK: insert the FOB price you receive from the buyer (in EUR). | I42: Date:
B43: 13) | D43: Insert the order size (# pieces) | E43: =C43*E39 -> 0 | F43: =C43*F39 -> 0 | G43: Order Value

Sheet Labour Minute Value Romania
B2: Factory Labour Minute Value and Product Labour Calculator Tool Romania
B4: Exchange rate (RON (Lei)) - € (change to actual) | E4: Current Minimum Wage | H4: Wage Benchmark (new NMW, CBA, or LW) | L4: Actual OT Hours per week | O4: Total number of workers
B5: ='Factory Input Fields'!C9 -> 4.84 | E5: ='Factory Input Fields'!C34 -> 2230 | H5: ='Factory Input Fields'!C35 -> 6762 | L5: ='Factory Input Fields'!C18 -> 0 | O5: ='Factory Input Fields'!C11 -> 0
B8: Wage Item | E8: Current NMW | H8: New Wage Benchmark | L8: Explanatory Notes
E9: Regular working hours (40h) | F9: Overtime hours | H9: Regular working hours (40) | I9: Overtime hours
B10: Legal Minimum Wage (Pay for time worked) | C10: Basic Wage | E10: =E5 -> 2230 | H10: =H5 -> 6762 | L10: Regular working hours 40h/week
C11: OT Wage | F11: =E5/4.33/40*L5*4.33*1.75 -> 0 | I11: =H10/4.33/40*L5*4.33*1.75 -> 0 | L11: Maximum OT / week is 8h @75% extra pay = 8h x 4.33 = 34.6h / month. Actual OT hours per week are inserted in Cell L5.
C12: SubTOTAL 1 | E12: =SUM(E10:E11) -> 2230 | F12: =SUM(F10:F11) -> 0 | H12: =SUM(H10:H11) -> 6762 | I12: =SUM(I10:I11) -> 0
B13: Directly Paid Benefits | C13: Medical leave allowance | E13: =IFERROR(R13/O5/12,0) -> 0 | H13: =IFERROR(R13/O5/12,0) -> 0 | L13: Total amount of medical leave allowance paid in the past year: | R13: ='Factory Input Fields'!C23 -> 0
C14: Productivity Bonus | E14: =IFERROR(R14/$O$5,0) -> 0 | H14: =IFERROR(R14/O5,0) -> 0 | L14: Total amount paid in productivity bonuses per month. | R14: ='Factory Input Fields'!C24 -> 0
C15: Attendance bonus | E15: =IFERROR(R15/$O$5,0) -> 0 | H15: =IFERROR(R15/$O$5,0) -> 0 | L15: Total amount paid in attendance bonuses per month. | R15: ='Factory Input Fields'!C25 -> 0
C16: Seniority Bonus | E16: =IFERROR(R16/$O$5,0) -> 0 | H16: =IFERROR(R16/$O$5,0) -> 0 | L16: Total amount paid in seniority bonuses per month. | R16: ='Factory Input Fields'!C26 -> 0
C17: Skills Bonus | E17: =IFERROR(R17/$O$5,0) -> 0 | H17: =IFERROR(R17/$O$5,0) -> 0 | L17: Total amount paid in skills bonuses per month. | R17: ='Factory Input Fields'!C27 -> 0
C18: Any other Bonuses | E18: =IFERROR(R18/$O$5,0) -> 0 | H18: =IFERROR(R18/$O$5,0) -> 0 | L18: Total amount paid in additional bonuses per month. | R18: ='Factory Input Fields'!C28 -> 0
C19: SubTOTAL 2 | E19: =SUM(E13:E18) -> 0 | H19: =SUM(H13:H18) -> 0
B20: Employer labour related on-cost | C20: Maternity leave / benefit | E20: =IFERROR(R20/O5/12,0) -> 0 | H20: =IFERROR(R20/O5/12,0) -> 0 | L20: Total amount in maternity benefits paid per year. | R20: ='Factory Input Fields'!C30 -> 0
C21: Work Insurance contribution 2.25% | E21: =E10*2.25% -> 50.175 | F21: =F12*2% -> 0 | H21: =H10*2.25% -> 152.145 | I21: =I12*2.25% -> 0
C22: Severence pay | E22: =IFERROR(R22/O5/12,0) -> 0 | H22: =IFERROR(R22/O5/12,0) -> 0 | L22: Total amount paid in severence pay per YEAR. | R22: ='Factory Input Fields'!C31 -> 0
C23: Any additional employer labour-related on-costs | E23: =IFERROR(R23/O5/12,0) -> 0 | H23: =IFERROR(R23/O5/12,0) -> 0 | L23: Total amount in any additional employer labour-related on-costs paid per year: | R23: ='Factory Input Fields'!C32 -> 0
C24: SubTOTAL 3 | E24: =SUM(E20:E23) -> 50.175 | F24: =SUM(F20:F23) -> 0 | H24: =SUM(H20:H23) -> 152.145 | I24: =SUM(I20:I23) -> 0
B25: TOTAL Labour cost per worker in RON | E25: =E24+E19+E12 -> 2280.175 | F25: =F24+F19+F12 -> 0 | H25: =H24+H19+H12 -> 6914.145 | I25: =I24+I19+I12 -> 0
B26: Monthly capacity minutes | E26: =40*4.33*60-('Factory Input Fields'!C16*8*60/12) -> 8992 | F26: =$L$5*4.33*60-(('Factory Input Fields'!C16/12*('Factory Input Fields'!C18/6)*60)) -> 0 | H26: =E26 -> 8992 | I26: =F26 -> 0 | L26: Regular working time: 40h/week x 4.33 x 60min Overtime: Actual OT/week x 4.33 x 60min
B27: Labour Minute Value RON (row 26/27) | E27: =E25/E26 -> 0.2535781806 | F27: =IFERROR(F25/F26,0) -> 0 | H27: =H25/H26 -> 0.7689218194 | I27: =IFERROR(I25/I26,0) -> 0
B28: Labour Minute Value € | E28: =E27/$B$5 -> 0.05239218608 | F28: 0 | H28: 0.1588681445 | I28: 0
B29: Monthly Labour Cost incl. OT in RON (sum row 26) | E29: =E25+F25 -> 2280.175 | H29: =H25+I25 -> 6914.145
B30: Monthly capacity minutes incl. OT (sum row 27) | E30: =E26+F26 -> 8992 | H30: =H26+I26 -> 8992
B31: Labour minute Value RON incl. OT (row 30/31) | E31: =E29/E30 -> 0.2535781806 | H31: =H29/H30 -> 0.7689218194
B32: Labour Minute Value € incl. OT | E32: =E31/$B$5 -> 0.05239218608 | H32: =H31/$B$5 -> 0.1588681445
B34: % Direct Labour Cost of Total Labour Cost | E34: 0.6 | F34: Everybody working directly (and adding value) on the product: sewing, cutting, etc.
B35: % Indirect Labour Cost of Total Labour Cost | E35: 0.4 | F35: Supporting production: maintenance, security, cleaning, management, etc | L35: Your Product | O35: e.g. t-shirt
B36: Total Labour Cost | E36: =SUM(E34:E35) -> 1 | F36: This must add up to 100% | L36: Standard Allowed Minutes | O36: 8 | P36: Note: if you don't know the SAM and efficiency percentage, simply indicate the actual labour minutes and put 100% as efficency
L37: Efficiency % | O37: 0.7
B38: Wage Level | E38: Labour Minute Value | F38: Increase (absolute) | H38: Increase (relative) | L38: Labour Cost | M38: Increase (absolute) | O38: Increase (relative)
B39: Factory Labour Minute Value based on Current Legal Minimum Wage | E39: =E32/E34 -> 0.08732031013 | L39: =E39*$O$36/$O$37 -> 0.9979464014
B40: Factory Labour Minute Value based on Wage Benchmark | E40: =H32/E34 -> 0.2647802408 | F40: =E40-E39 -> 0.1774599307 | H40: =(E40-E39)/E39 -> 2.032286996 | L40: =E40*$O$36/$O$37 -> 3.026059895 | M40: =L40-L39 -> 2.028113494 | O40: =(L40-L39)/L39 -> 2.032286996
